[Event "FRA-chT Top 12 2019"]
[Site "Brest"]
[Date "2019.05.25"]
[Round "8.4"]
[White "Movsesian, Sergei"]
[Black "Wagner, Dennis"]
[Result "0-1"]
[ECO "C50"]
[WhiteElo "2645"]
[BlackElo "2578"]
[Annotator "RC"]
[PlyCount "112"]
[EventDate "2019.05.18"]
[EventType "team-tourn"]
[EventCountry "FRA"]
[SourceTitle "playchess.com"]
[Source "ChessBase"]
[SourceQuality "1"]
[TimeControl "40/5400+30:1800+30"]

1. e4 {[%emt 0:00:00]} e5 {[%emt 0:00:00]} 2. Nf3 {[%emt 0:00:00]} Nc6 {[%emt 0:00:00]} 3. Bc4 {[%emt 0:00:00]} Bc5 {[%emt 0:00:00]} 4. O-O {[%emt 0:00:23]} Nf6 {[%emt 0:00:02]} 5. d3 {[%emt 0:00:08]} a6 {[%emt 0:01:20]} 6. c3 {[%emt 0:05:57]} d6 {[%emt 0:00:08]} 7. a4 {[%emt 0:01:28]} h6 {[%emt 0:02:00]} 8. Nbd2 {[%emt 0:03:49]} O-O {[%emt 0:01:01]} 9. Re1 {[%emt 0:06:39]} Ne7 {[%emt 0:00:11]} 10. Nf1 {[%emt 0:02:58]} Ng6 {[%emt 0:00:33]} 11. Ng3 {[%emt 0:01:24]} c6 {[%emt 0:00:34]} 12. Bb3 {[%emt 0:07:13]} Bg4 {[%emt 0:04:12]} 13. h3 {[%emt 0:10:11]} Qb6 {[%emt 0:01:43]} 14. Be3 {[%emt 0:00:47]} Bxf3 {[%emt 0:03:04]} 15. gxf3 {[%emt 0:01:54]} Bxe3 {[%emt 0:01:06]} 16. fxe3 {[%emt 0:00:37]} a5 {[%emt 0:03:42]} 17. Nf5 {[%emt 0:17:48]} d5 {[%emt 0:03:50]} 18. Kh2 {[%emt 0:01:36]} Rad8 {[%emt 0:11:15]} 19. Rg1 {[%emt 0:04:46]} Kh8 {[%emt 0:00:05]} 20. Qc2 {[%emt 0:00:40]} Rd7 {[%emt 0:01:41]} 21. Rg2 {[%emt 0:01:46]} Ne7 {[%emt 0:09:23]} 22. Nxe7 {[%emt 0:02:00]} Rxe7 {[%emt 0:00:10]} 23. Re1 {[%emt 0:00:23]} Nh5 {[%emt 0:00:00]} 24. Ba2 {[%emt 0:04:31]} f5 {[%emt 0:23:34]} 25. Qf2 {[%emt 0:05:55]} fxe4 {[%emt 0:09:05]} 26. Qh4 {[%emt 0:00:36]} Nf6 {[%emt 0:00:12]} 27. fxe4 {[%emt 0:00:26]} dxe4 {[%emt 0:04:35]} 28. dxe4 {[%emt 0:00:19]} Qd8 {[%emt 0:01:13]} 29. Reg1 {[%emt 0:04:32]} Rd7 {[%emt 0:10:13]} 30. Be6 {[%emt 0:06:58]} Rd2 {[%emt 0:00:07]} 31. Bf5 {[%emt 0:00:16]} Rxg2+ {[%emt 0:00:33]} 32. Rxg2 {[%emt 0:00:09]} Qe7 {[%emt 0:00:14]} 33. Qg3 {[%emt 0:04:56]} Rd8 {[%emt 0:02:25]} 34. Qg6 {[%emt 0:01:38]} Rd3 {[%emt 0:00:40]} 35. Qg3 {[%emt 0:00:33]} Rd6 {[%emt 0:01:34]} 36. Qg6 {[%emt 0:01:23]} Rd3 {[%emt 0:00:14]} 37. Qg3 {[%emt 0:00:06]} Qc7 {[%emt 0:03:48]} 38. Be6 {[%emt 0:01:06]} Nxe4 {[%emt 0:03:45]} 39. Qg6 {[%emt 0:01:16]} Nf6 {[%emt 0:00:02]} 40. e4 {[%emt 0:01:40]} Qe7 {[%emt 0:01:05]} 41. Bf5 {[%emt 0:10:28]} Rd8 {[%emt 0:06:35]} 42. Qg3 {[%emt 0:04:28]} Rd6 {[%emt 0:02:17]} 43. Qg6 {[%emt 0:01:47]} Rd3 {[%emt 0:00:19]} 44. Kh1 {[%emt 0:03:28]} Rd6 {[%emt 0:04:38]} 45. Kh2 {[%emt 0:00:37]} Kg8 {[%emt 0:00:54]} 46. Kh1 {[%emt 0:03:53]} Kf8 {[%emt 0:00:49]} 47. Rf2 {[%emt 0:00:30]} Rd3 {[%emt 0:04:25]} 48. Bg4 {[%emt 0:03:51]} Kg8 {[%emt 0:12:41]} 49. Be2 {[%emt 0:00:12]} Rxh3+ {[%emt 0:01:24]} 50. Kg2 {[%emt 0:00:05]} Rh4 {[%emt 0:00:43]} 51. Bc4+ {[%emt 0:00:24]} Kf8 {[%emt 0:00:01]} 52. Qh7 {[%emt 0:00:11]} Ke8 {[%emt 0:00:39]} 53. Qf5 {[%emt 0:02:46]} Kd8 {[%emt 0:00:01]} 54. Re2 {[%emt 0:01:56]} Rg4+ {[%emt 0:01:07]} 55. Kh2 {[%emt 0:00:25]} Rf4 {[%emt 0:00:26]} 56. Qg6 {[%emt 0:00:03]} Rh4+ {[%emt 0:00:17]} 0-1

[Event "FRA-chT Top 12 2019"]
[Site "Brest"]
[Date "2019.05.25"]
[Round "8.4"]
[White "Istratescu, Andrei"]
[Black "Leconte, Maria"]
[Result "1/2-1/2"]
[ECO "D30"]
[WhiteElo "2555"]
[BlackElo "2246"]
[Annotator "ChessBase"]
[PlyCount "123"]
[EventDate "2019.05.18"]
[EventType "team-tourn"]
[EventCountry "FRA"]
[SourceTitle "playchess.com"]
[Source "ChessBase"]
[SourceQuality "1"]
[TimeControl "40/5400+30:1800+30"]

1. d4 {[%emt 0:00:00]} d5 {[%emt 0:00:00]} 2. c4 {[%emt 0:00:15]} e6 {[%emt 0:00:00]} 3. Nf3 {[%emt 0:01:56]} c5 {[%emt 0:00:00]} 4. cxd5 {[%emt 0:05:26]} exd5 {[%emt 0:00:00]} 5. Bg5 {[%emt 0:00:04]} Be7 {[%emt 0:04:49]} 6. Bxe7 {[%emt 0:03:09]} Nxe7 {[%emt 0:00:18]} 7. dxc5 {[%emt 0:01:58]} Qa5+ {[%emt 0:04:51]} 8. Qd2 {[%emt 0:14:45]} Qxc5 {[%emt 0:02:24]} 9. Qc3 {[%emt 0:00:12]} Na6 {[%emt 0:02:47]} 10. e3 {[%emt 0:01:52]} Qxc3+ {[%emt 0:21:34]} 11. Nxc3 {[%emt 0:00:46]} Nc7 {[%emt 0:03:43]} 12. Rc1 {[%emt 0:03:03]} Bd7 {[%emt 0:04:41]} 13. Kd2 {[%emt 0:11:00]} O-O {[%emt 0:04:11]} 14. Bd3 {[%emt 0:03:23]} Ne6 {[%emt 0:05:13]} 15. Ne2 {[%emt 0:04:45]} Nc6 {[%emt 0:03:41]} 16. Bb5 {[%emt 0:03:27]} Nb8 {[%emt 0:03:18]} 17. Ned4 {[%emt 0:04:22]} Bxb5 {[%emt 0:04:21]} 18. Nxb5 {[%emt 0:00:03]} Nc6 {[%emt 0:00:18]} 19. Rc3 {[%emt 0:01:51]} Rfd8 {[%emt 0:09:10]} 20. Nbd4 {[%emt 0:08:18]} Nexd4 {[%emt 0:01:14]} 21. Nxd4 {[%emt 0:03:50]} Nxd4 {[%emt 0:00:13]} 22. exd4 {[%emt 0:00:04]} Rd7 {[%emt 0:00:03]} 23. Re1 {[%emt 0:00:04]} Kf8 {[%emt 0:00:52]} 24. Re5 {[%emt 0:01:10]} f6 {[%emt 0:06:51]} 25. Rh5 {[%emt 0:01:06]} h6 {[%emt 0:03:52]} 26. Rc5 {[%emt 0:04:48]} Rad8 {[%emt 0:00:06]} 27. Rh3 {[%emt 0:05:00]} Re8 {[%emt 0:03:05]} 28. Re3 {[%emt 0:01:25]} Rxe3 {[%emt 0:01:15]} 29. Kxe3 {[%emt 0:00:43]} Kf7 {[%emt 0:00:19]} 30. h4 {[%emt 0:01:33]} Ke6 {[%emt 0:01:09]} 31. f3 {[%emt 0:02:03]} h5 {[%emt 0:04:59]} 32. Kf4 {[%emt 0:00:48]} g5+ {[%emt 0:04:56]} 33. Kg3 {[%emt 0:01:41]} Rg7 {[%emt 0:00:29]} 34. hxg5 {[%emt 0:00:31]} fxg5 {[%emt 0:00:23]} 35. Rc8 {[%emt 0:01:20]} Rf7 {[%emt 0:01:14]} 36. Re8+ {[%emt 0:01:51]} Re7 {[%emt 0:00:17]} 37. Rh8 {[%emt 0:01:24]} Kf5 {[%emt 0:01:02]} 38. Rxh5 {[%emt 0:03:46]} Re2 {[%emt 0:00:06]} 39. b3 {[%emt 0:00:28]} Rxa2 {[%emt 0:00:46]} 40. Rh7 {[%emt 0:00:27]} Rd2 {[%emt 0:00:35]} 41. Rf7+ {[%emt 0:31:50]} Kg6 {[%emt 0:06:07]} 42. Rxb7 {[%emt 0:00:00]} Rxd4 {[%emt 0:00:21]} 43. Rxa7 {[%emt 0:00:00]} Rb4 {[%emt 0:02:41]} 44. Ra3 {[%emt 0:00:00]} Kf5 {[%emt 0:01:32]} 45. Kf2 {[%emt 0:00:00]} d4 {[%emt 0:06:01]} 46. Ke2 {[%emt 0:00:00]} Kf4 {[%emt 0:01:01]} 47. Kf2 {[%emt 0:00:00]} Rb5 {[%emt 0:07:43]} 48. g3+ {[%emt 0:00:00]} Kf5 {[%emt 0:00:42]} 49. g4+ {[%emt 0:00:00]} Ke5 {[%emt 0:03:20]} 50. Ke2 {[%emt 0:00:00]} Kf4 {[%emt 0:00:06]} 51. Kd3 {[%emt 0:00:00]} Kxf3 {[%emt 0:02:37]} 52. Kxd4 {[%emt 0:00:00]} Kxg4 {[%emt 0:00:06]} 53. Kc4 {[%emt 0:00:00]} Rb8 {[%emt 0:00:22]} 54. b4 {[%emt 0:00:00]} Kf4 {[%emt 0:00:07]} 55. b5 {[%emt 0:00:00]} g4 {[%emt 0:00:14]} 56. Kc5 {[%emt 0:00:00]} g3 {[%emt 0:00:12]} 57. Ra1 {[%emt 0:00:00]} g2 {[%emt 0:00:33]} 58. Rg1 {[%emt 0:00:00]} Kf3 {[%emt 0:00:05]} 59. b6 {[%emt 0:00:00]} Kf2 {[%emt 0:00:07]} 60. Rxg2+ {[%emt 0:00:00]} Kxg2 {[%emt 0:00:05]} 61. Kc6 {[%emt 0:00:00]} Rxb6+ {[%emt 0:00:12]} 62. Kxb6 {[%emt 0:00:00]} 1/2-1/2

[Event "FRA-chT Top 12 2019"]
[Site "Brest"]
[Date "2019.05.25"]
[Round "8.4"]
[White "Santos Ruiz, Miguel"]
[Black "Vallin, Guillaume"]
[Result "1-0"]
[ECO "A04"]
[WhiteElo "2549"]
[BlackElo "2389"]
[Annotator "ChessBase"]
[PlyCount "123"]
[EventDate "2019.05.18"]
[EventType "team-tourn"]
[EventCountry "FRA"]
[SourceTitle "playchess.com"]
[Source "ChessBase"]
[SourceQuality "1"]
[TimeControl "40/5400+30:1800+30"]

1. Nf3 {[%emt 0:00:00]} e6 {[%emt 0:00:28]} 2. c4 {[%emt 0:00:00]} Nf6 {[%emt 0:00:54]} 3. Nc3 {[%emt 0:00:00]} d5 {[%emt 0:00:43]} 4. e3 {[%emt 0:00:10]} Be7 {[%emt 0:00:53]} 5. b3 {[%emt 0:00:09]} O-O {[%emt 0:02:59]} 6. Bb2 {[%emt 0:00:59]} b6 {[%emt 0:02:22]} 7. cxd5 {[%emt 0:01:54]} exd5 {[%emt 0:00:44]} 8. d4 {[%emt 0:00:15]} Bb7 {[%emt 0:03:49]} 9. Bd3 {[%emt 0:01:50]} Nbd7 {[%emt 0:02:04]} 10. O-O {[%emt 0:01:32]} Ne4 {[%emt 0:34:06]} 11. Rc1 {[%emt 0:20:02]} Nxc3 {[%emt 0:09:57]} 12. Rxc3 {[%emt 0:00:17]} Bd6 {[%emt 0:03:20]} 13. Qc1 {[%emt 0:06:44]} Rc8 {[%emt 0:14:13]} 14. Ba3 {[%emt 0:01:34]} Qe7 {[%emt 0:01:15]} 15. Bxd6 {[%emt 0:02:27]} Qxd6 {[%emt 0:00:09]} 16. Bf5 {[%emt 0:22:40]} g6 {[%emt 0:00:40]} 17. Bxd7 {[%emt 0:01:49]} Qxd7 {[%emt 0:00:02]} 18. Ne5 {[%emt 0:00:15]} Qd6 {[%emt 0:01:14]} 19. Nc6 {[%emt 0:00:08]} a6 {[%emt 0:03:33]} 20. Qc2 {[%emt 0:03:46]} Rfe8 {[%emt 0:01:24]} 21. Rc1 {[%emt 0:01:55]} Kg7 {[%emt 0:04:42]} 22. b4 {[%emt 0:08:40]} Bxc6 {[%emt 0:03:45]} 23. Rxc6 {[%emt 0:00:10]} Qxb4 {[%emt 0:00:01]} 24. Rxc7 {[%emt 0:00:10]} Rxc7 {[%emt 0:01:36]} 25. Qxc7 {[%emt 0:00:04]} Qd2 {[%emt 0:02:09]} 26. Qc2 {[%emt 0:05:38]} Qxc2 {[%emt 0:00:28]} 27. Rxc2 {[%emt 0:00:03]} Re6 {[%emt 0:00:58]} 28. Kf1 {[%emt 0:00:34]} Kf6 {[%emt 0:01:59]} 29. Ke2 {[%emt 0:00:27]} Rd6 {[%emt 0:00:32]} 30. Rc7 {[%emt 0:03:46]} Ke6 {[%emt 0:00:09]} 31. Ra7 {[%emt 0:00:24]} b5 {[%emt 0:00:31]} 32. Kd3 {[%emt 0:00:23]} Rc6 {[%emt 0:01:14]} 33. a3 {[%emt 0:00:54]} h5 {[%emt 0:00:10]} 34. f3 {[%emt 0:00:26]} f6 {[%emt 0:03:10]} 35. h4 {[%emt 0:01:16]} f5 {[%emt 0:00:30]} 36. e4 {[%emt 0:00:42]} fxe4+ {[%emt 0:00:07]} 37. fxe4 {[%emt 0:00:03]} dxe4+ {[%emt 0:00:35]} 38. Kxe4 {[%emt 0:00:04]} Rb6 {[%emt 0:00:30]} 39. g3 {[%emt 0:13:17]} Kf6 {[%emt 0:00:34]} 40. Kd5 {[%emt 0:00:21]} Kf5 {[%emt 0:00:50]} 41. Kc5 {[%emt 0:12:19]} Re6 {[%emt 0:08:35]} 42. d5 {[%emt 0:05:08]} Re3 {[%emt 0:00:46]} 43. Rf7+ {[%emt 0:04:18]} Kg4 {[%emt 0:00:13]} 44. Rf4+ {[%emt 0:00:28]} Kxg3 {[%emt 0:00:11]} 45. Rd4 {[%emt 0:00:04]} Rxa3 {[%emt 0:06:47]} 46. d6 {[%emt 0:00:06]} Rf3 {[%emt 0:13:00]} 47. d7 {[%emt 0:00:51]} Rf8 {[%emt 0:00:02]} 48. d8=Q {[%emt 0:01:45]} Rxd8 {[%emt 0:00:03]} 49. Rxd8 {[%emt 0:00:03]} Kxh4 {[%emt 0:00:04]} 50. Kd4 {[%emt 0:00:35]} g5 {[%emt 0:04:17]} 51. Ke3 {[%emt 0:00:33]} Kg3 {[%emt 0:01:20]} 52. Rd5 {[%emt 0:02:06]} Kg4 {[%emt 0:00:22]} 53. Re5 {[%emt 0:03:33]} h4 {[%emt 0:00:17]} 54. Kf2 {[%emt 0:00:03]} Kf4 {[%emt 0:00:16]} 55. Re6 {[%emt 0:00:03]} a5 {[%emt 0:00:56]} 56. Ra6 {[%emt 0:00:22]} g4 {[%emt 0:00:47]} 57. Rxa5 {[%emt 0:00:10]} g3+ {[%emt 0:00:06]} 58. Kg2 {[%emt 0:00:06]} Kg4 {[%emt 0:00:06]} 59. Rxb5 {[%emt 0:00:09]} h3+ {[%emt 0:00:02]} 60. Kg1 {[%emt 0:00:09]} Kf3 {[%emt 0:00:14]} 61. Rf5+ {[%emt 0:00:04]} Kg4 {[%emt 0:00:16]} 62. Rf8 {[%emt 0:00:03]} 1-0

[Event "FRA-chT Top 12 2019"]
[Site "Brest"]
[Date "2019.05.25"]
[Round "8.4"]
[White "Chabanon, Jean-Luc"]
[Black "Malakhov, Vladimir"]
[Result "0-1"]
[ECO "D10"]
[WhiteElo "2437"]
[BlackElo "2660"]
[Annotator "RC"]
[PlyCount "102"]
[EventDate "2019.05.18"]
[EventType "team-tourn"]
[EventCountry "FRA"]
[SourceTitle "playchess.com"]
[Source "ChessBase"]
[SourceQuality "1"]
[TimeControl "40/5400+30:1800+30"]

1. d4 {[%emt 0:01:44]} d5 {[%emt 0:00:00]} 2. c4 {[%emt 0:00:10]} c6 {[%emt 0:00:00]} 3. Nc3 {[%emt 0:00:41]} Nf6 {[%emt 0:00:03]} 4. e3 {[%emt 0:03:31]} g6 {[%emt 0:01:12]} 5. Nf3 {[%emt 0:01:41]} Bg7 {[%emt 0:00:05]} 6. Bd3 {[%emt 0:02:58]} O-O {[%emt 0:01:01]} 7. O-O {[%emt 0:00:05]} e6 {[%emt 0:00:04]} 8. e4 {[%emt 0:10:54]} dxe4 {[%emt 0:02:08]} 9. Nxe4 {[%emt 0:00:21]} Nxe4 {[%emt 0:00:05]} 10. Bxe4 {[%emt 0:00:07]} Nd7 {[%emt 0:02:10]} 11. Bf4 {[%emt 0:06:04]} Re8 {[%emt 0:00:28]} 12. Re1 {[%emt 0:18:23]} c5 {[%emt 0:12:50]} 13. d5 {[%emt 0:27:04]} e5 {[%emt 0:10:18]} 14. Bg5 {[%emt 0:04:25]} f6 {[%emt 0:00:09]} 15. Bh4 {[%emt 0:02:37]} Nb6 {[%emt 0:03:59]} 16. b4 {[%emt 0:04:02]} Qd6 {[%emt 0:03:04]} 17. Rc1 {[%emt 0:03:53]} Bg4 {[%emt 0:05:32]} 18. bxc5 {[%emt 0:06:22]} Qxc5 {[%emt 0:00:12]} 19. d6 {[%emt 0:01:09]} Rad8 {[%emt 0:01:48]} 20. Bxb7 {[%emt 0:00:08]} Rxd6 {[%emt 0:00:19]} 21. Qb3 {[%emt 0:00:04]} Be6 {[%emt 0:17:36]} 22. Qb5 {[%emt 0:00:38]} Qxb5 {[%emt 0:02:34]} 23. cxb5 {[%emt 0:00:02]} g5 {[%emt 0:04:24]} 24. Bg3 {[%emt 0:00:09]} h5 {[%emt 0:00:04]} 25. h4 {[%emt 0:00:24]} g4 {[%emt 0:00:05]} 26. Nh2 {[%emt 0:01:50]} Bxa2 {[%emt 0:00:37]} 27. Rc7 {[%emt 0:00:34]} Red8 {[%emt 0:03:34]} 28. f4 {[%emt 0:00:39]} Rd1 {[%emt 0:03:31]} 29. Rxd1 {[%emt 0:00:28]} Rxd1+ {[%emt 0:00:14]} 30. Kf2 {[%emt 0:00:01]} Nd5 {[%emt 0:05:23]} 31. Rc8+ {[%emt 0:00:33]} Kf7 {[%emt 0:00:06]} 32. Rc2 {[%emt 0:02:57]} Bb3 {[%emt 0:02:34]} 33. Bxd5+ {[%emt 0:00:28]} Bxd5 {[%emt 0:00:06]} 34. Nf1 {[%emt 0:00:14]} Rb1 {[%emt 0:02:00]} 35. Ne3 {[%emt 0:00:25]} Be4 {[%emt 0:03:08]} 36. Ra2 {[%emt 0:00:15]} Kg8 {[%emt 0:03:24]} 37. fxe5 {[%emt 0:00:42]} fxe5 {[%emt 0:00:33]} 38. Rxa7 {[%emt 0:00:58]} Rb2+ {[%emt 0:00:06]} 39. Ke1 {[%emt 0:00:44]} Rxb5 {[%emt 0:00:27]} 40. Nc4 {[%emt 0:00:55]} Bxg2 {[%emt 0:03:23]} 41. Rc7 {[%emt 0:13:42]} Bf6 {[%emt 0:04:18]} 42. Kf2 {[%emt 0:10:30]} Bf3 {[%emt 0:08:07]} 43. Rf7 {[%emt 0:00:38]} Kxf7 {[%emt 0:00:46]} 44. Nd6+ {[%emt 0:00:05]} Ke6 {[%emt 0:00:04]} 45. Nxb5 {[%emt 0:00:05]} Bd8 {[%emt 0:00:27]} 46. Na3 {[%emt 0:03:05]} Kd5 {[%emt 0:03:36]} 47. Nc2 {[%emt 0:00:36]} Bb6+ {[%emt 0:00:06]} 48. Kf1 {[%emt 0:00:37]} Be4 {[%emt 0:01:37]} 49. Ne1 {[%emt 0:00:05]} Be3 {[%emt 0:00:08]} 50. Ke2 {[%emt 0:00:56]} Bf4 {[%emt 0:00:08]} 51. Bf2 {[%emt 0:00:01]} Ke6 {[%emt 0:00:19]} 0-1

[Event "FRA-chT Top 12 2019"]
[Site "Brest"]
[Date "2019.05.25"]
[Round "8.4"]
[White "Lamard, Guillaume"]
[Black "Hamitevici, Vladimir"]
[Result "0-1"]
[ECO "B15"]
[WhiteElo "2405"]
[BlackElo "2476"]
[Annotator "ChessBase"]
[PlyCount "100"]
[EventDate "2019.05.18"]
[EventType "team-tourn"]
[EventCountry "FRA"]
[SourceTitle "playchess.com"]
[Source "ChessBase"]
[SourceQuality "1"]
[TimeControl "40/5400+30:1800+30"]

1. e4 {[%emt 0:00:00]} c6 {[%emt 0:00:26]} 2. d4 {[%emt 0:00:00]} d5 {[%emt 0:00:08]} 3. Nd2 {[%emt 0:00:00]} dxe4 {[%emt 0:00:37]} 4. Nxe4 {[%emt 0:00:00]} Nf6 {[%emt 0:00:46]} 5. Nxf6+ {[%emt 0:00:00]} exf6 {[%emt 0:00:06]} 6. c3 {[%emt 0:00:00]} Bd6 {[%emt 0:00:12]} 7. Bd3 {[%emt 0:00:02]} O-O {[%emt 0:00:18]} 8. Ne2 {[%emt 0:00:03]} Re8 {[%emt 0:00:32]} 9. O-O {[%emt 0:00:30]} Qc7 {[%emt 0:01:40]} 10. Ng3 {[%emt 0:00:42]} Nd7 {[%emt 0:01:13]} 11. Nf5 {[%emt 0:00:03]} Nf8 {[%emt 0:01:12]} 12. Nxd6 {[%emt 0:00:04]} Qxd6 {[%emt 0:00:06]} 13. a4 {[%emt 0:03:47]} Be6 {[%emt 0:01:54]} 14. Be3 {[%emt 0:36:45]} Ng6 {[%emt 0:10:49]} 15. Qf3 {[%emt 0:03:30]} Qd7 {[%emt 0:12:07]} 16. Rfe1 {[%emt 0:11:42]} Bg4 {[%emt 0:03:15]} 17. Qg3 {[%emt 0:00:09]} Bf5 {[%emt 0:00:08]} 18. Be2 {[%emt 0:03:32]} a5 {[%emt 0:00:58]} 19. h4 {[%emt 0:02:53]} Ne7 {[%emt 0:03:31]} 20. h5 {[%emt 0:02:31]} Be4 {[%emt 0:02:07]} 21. h6 {[%emt 0:03:35]} Nf5 {[%emt 0:03:53]} 22. Bg4 {[%emt 0:03:32]} g6 {[%emt 0:00:43]} 23. Qh2 {[%emt 0:02:22]} Qd5 {[%emt 0:04:45]} 24. Bd2 {[%emt 0:03:21]} c5 {[%emt 0:21:00]} 25. Bxf5 {[%emt 0:01:10]} Qxf5 {[%emt 0:02:47]} 26. dxc5 {[%emt 0:07:13]} Qxc5 {[%emt 0:00:47]} 27. Be3 {[%emt 0:00:11]} Qe5 {[%emt 0:01:43]} 28. Bd4 {[%emt 0:04:24]} Qxh2+ {[%emt 0:00:11]} 29. Kxh2 {[%emt 0:00:02]} f5 {[%emt 0:00:12]} 30. b4 {[%emt 0:01:12]} Re6 {[%emt 0:01:06]} 31. Bg7 {[%emt 0:07:01]} Bc2 {[%emt 0:01:14]} 32. Rec1 {[%emt 0:00:17]} Be4 {[%emt 0:03:57]} 33. f3 {[%emt 0:00:29]} Bc6 {[%emt 0:00:15]} 34. b5 {[%emt 0:00:18]} Be8 {[%emt 0:00:05]} 35. Re1 {[%emt 0:01:33]} Rc8 {[%emt 0:00:53]} 36. Rad1 {[%emt 0:01:02]} g5 {[%emt 0:01:03]} 37. Kg3 {[%emt 0:00:55]} Bd7 {[%emt 0:04:28]} 38. Rxd7 {[%emt 0:02:31]} Rxe1 {[%emt 0:00:07]} 39. Rxb7 {[%emt 0:00:07]} Re6 {[%emt 0:00:13]} 40. Ra7 {[%emt 0:01:52]} f6 {[%emt 0:00:17]} 41. Rxa5 {[%emt 0:16:02]} Kf7 {[%emt 0:06:01]} 42. Ra7+ {[%emt 0:03:23]} Kg6 {[%emt 0:00:46]} 43. Rd7 {[%emt 0:09:54]} Rxc3 {[%emt 0:02:06]} 44. a5 {[%emt 0:00:30]} Rc2 {[%emt 0:05:51]} 45. b6 {[%emt 0:00:13]} Ree2 {[%emt 0:01:04]} 46. Kh2 {[%emt 0:00:07]} Rxg2+ {[%emt 0:00:24]} 47. Kh1 {[%emt 0:00:03]} Rh2+ {[%emt 0:01:25]} 48. Kg1 {[%emt 0:00:02]} Rcg2+ {[%emt 0:00:08]} 49. Kf1 {[%emt 0:00:04]} Ra2 {[%emt 0:00:06]} 50. Kg1 {[%emt 0:00:02]} Rhb2 {[%emt 0:00:22]} 0-1

[Event "FRA-chT Top 12 2019"]
[Site "Brest"]
[Date "2019.05.25"]
[Round "8.5"]
[White "Feller, Sebastien"]
[Black "Marcelin, Cyril"]
[Result "1-0"]
[ECO "D31"]
[WhiteElo "2587"]
[BlackElo "2451"]
[Annotator "ChessBase"]
[PlyCount "83"]
[EventDate "2019.05.18"]
[EventType "team-tourn"]
[EventCountry "FRA"]
[SourceTitle "playchess.com"]
[Source "ChessBase"]
[SourceQuality "1"]
[TimeControl "40/5400+30:1800+30"]

1. d4 {[%emt 0:00:00]} d5 {[%emt 0:00:00]} 2. c4 {[%emt 0:00:05]} e6 {[%emt 0:00:00]} 3. Nc3 {[%emt 0:00:56]} a6 {[%emt 0:00:09]} 4. cxd5 {[%emt 0:01:05]} exd5 {[%emt 0:00:07]} 5. Qb3 {[%emt 0:00:05]} Nc6 {[%emt 0:04:56]} 6. Nf3 {[%emt 0:13:49]} Bb4 {[%emt 0:00:38]} 7. a3 {[%emt 0:08:50]} Ba5 {[%emt 0:08:01]} 8. Bg5 {[%emt 0:05:04]} Nge7 {[%emt 0:03:53]} 9. h3 {[%emt 0:02:38]} O-O {[%emt 0:09:59]} 10. e3 {[%emt 0:02:21]} Bf5 {[%emt 0:01:54]} 11. Be2 {[%emt 0:06:29]} Qd7 {[%emt 0:17:14]} 12. Bf4 {[%emt 0:04:16]} Ng6 {[%emt 0:07:43]} 13. Bh2 {[%emt 0:01:41]} Nce7 {[%emt 0:04:48]} 14. O-O {[%emt 0:05:13]} c6 {[%emt 0:00:02]} 15. Na4 {[%emt 0:09:35]} Ra7 {[%emt 0:00:49]} 16. Nc5 {[%emt 0:01:21]} Qc8 {[%emt 0:00:13]} 17. Qd1 {[%emt 0:00:19]} Bc7 {[%emt 0:00:16]} 18. b4 {[%emt 0:00:19]} Bxh2+ {[%emt 0:00:18]} 19. Nxh2 {[%emt 0:00:15]} Qc7 {[%emt 0:10:25]} 20. a4 {[%emt 0:01:27]} Rfa8 {[%emt 0:00:23]} 21. Rc1 {[%emt 0:00:30]} Nf8 {[%emt 0:02:08]} 22. g4 {[%emt 0:09:00]} Bd7 {[%emt 0:08:32]} 23. f4 {[%emt 0:01:14]} Re8 {[%emt 0:01:17]} 24. Rf2 {[%emt 0:03:53]} Nc8 {[%emt 0:00:09]} 25. Nf1 {[%emt 0:02:46]} Nd6 {[%emt 0:00:08]} 26. a5 {[%emt 0:02:24]} Ne4 {[%emt 0:08:17]} 27. Nxe4 {[%emt 0:00:46]} Rxe4 {[%emt 0:00:06]} 28. Bf3 {[%emt 0:05:02]} Re7 {[%emt 0:00:22]} 29. Bxd5 {[%emt 0:01:12]} Qd6 {[%emt 0:00:15]} 30. Bg2 {[%emt 0:00:51]} Qxb4 {[%emt 0:00:16]} 31. Qd2 {[%emt 0:00:34]} Qxd2 {[%emt 0:04:02]} 32. Rxd2 {[%emt 0:00:16]} f5 {[%emt 0:03:40]} 33. gxf5 {[%emt 0:00:31]} Bxf5 {[%emt 0:00:02]} 34. d5 {[%emt 0:00:36]} cxd5 {[%emt 0:01:06]} 35. Rxd5 {[%emt 0:00:21]} Bd7 {[%emt 0:01:58]} 36. Rd6 {[%emt 0:00:48]} Kf7 {[%emt 0:00:46]} 37. Rb6 {[%emt 0:02:04]} Be6 {[%emt 0:02:29]} 38. Nd2 {[%emt 0:02:00]} Ke8 {[%emt 0:00:59]} 39. Ne4 {[%emt 0:00:48]} Kd8 {[%emt 0:00:31]} 40. Nd6 {[%emt 0:01:16]} Rc7 {[%emt 0:00:30]} 41. Rxc7 {[%emt 0:09:09]} Kxc7 {[%emt 0:00:06]} 42. Ne8+ {[%emt 0:01:07]} 1-0

[Event "FRA-chT Top 12 2019"]
[Site "Brest"]
[Date "2019.05.25"]
[Round "8.5"]
[White "Barseghyan, Harutyun"]
[Black "Gozzoli, Yannick"]
[Result "1/2-1/2"]
[ECO "D85"]
[WhiteElo "2470"]
[BlackElo "2622"]
[Annotator "ChessBase"]
[PlyCount "25"]
[EventDate "2019.05.18"]
[EventType "team-tourn"]
[EventCountry "FRA"]
[SourceTitle "playchess.com"]
[Source "ChessBase"]
[SourceQuality "1"]
[TimeControl "40/5400+30:1800+30"]

1. d4 {[%emt 0:00:00]} Nf6 {[%emt 0:00:00]} 2. c4 {[%emt 0:00:00]} g6 {[%emt 0:00:00]} 3. Nc3 {[%emt 0:00:26]} d5 {[%emt 0:00:09]} 4. cxd5 {[%emt 0:00:54]} Nxd5 {[%emt 0:00:22]} 5. e4 {[%emt 0:00:04]} Nxc3 {[%emt 0:00:05]} 6. bxc3 {[%emt 0:00:03]} Bg7 {[%emt 0:00:08]} 7. Be3 {[%emt 0:00:06]} c5 {[%emt 0:00:11]} 8. Nf3 {[%emt 0:00:02]} Qa5 {[%emt 0:00:22]} 9. Qd2 {[%emt 0:00:11]} O-O {[%emt 0:01:27]} 10. Rb1 {[%emt 0:01:10]} Nd7 {[%emt 0:11:11]} 11. Bd3 {[%emt 0:02:46]} b6 {[%emt 0:14:59]} 12. O-O {[%emt 0:10:37]} Ba6 {[%emt 0:07:10]} 13. Bxa6 {[%emt 0:10:09]} 1/2-1/2